[Event "Titled Tuesday Blitz May 03 Early 2022"]
[White "Gharibyan, Mamikon"]
[Black "Yurovskykh, Oleksandr"]
[WhiteFideId "13308300"]
[BlackFideId "14134020"]
[WhiteElo "2254"]
[BlackElo "2292"]
[Result "1-0"]
[Round "05"]
[TimeControl "180+1"]
[Date "2022.05.03"]
[WhiteClock "0:00:11"]
[BlackClock "0:00:13"]

1. c4 {[%clk 0:03:00]}  c6 {[%clk 0:02:58]} 2. Nf3 {[%clk 0:02:58]}  d5 {[%clk 0:02:59]} 3. g3 {[%clk 0:02:58]}  Nf6 {[%clk 0:02:59]} 4. Bg2 {[%clk 0:02:58]}  Bg4 {[%clk 0:03:00]} 5. O-O {[%clk 0:02:52]}  e6 {[%clk 0:02:57]} 6. d3 {[%clk 0:02:51]}  Nbd7 {[%clk 0:02:49]} 7. Qb3 {[%clk 0:02:50]}  Qb6 {[%clk 0:02:46]} 8. Be3 {[%clk 0:02:49]}  Qxb3 {[%clk 0:02:45]} 9. axb3 {[%clk 0:02:49]}  a6 {[%clk 0:02:45]} 10. Nc3 {[%clk 0:02:42]}  Bd6 {[%clk 0:02:41]} 11. h3 {[%clk 0:02:40]}  Bh5 {[%clk 0:02:40]} 12. g4 {[%clk 0:02:39]}  Bg6 {[%clk 0:02:40]} 13. Nh4 {[%clk 0:02:39]}  O-O {[%clk 0:02:27]} 14. f4 {[%clk 0:02:13]}  h6 {[%clk 0:02:27]} 15. Nxg6 {[%clk 0:02:08]}  fxg6 {[%clk 0:02:27]} 16. Kh1 {[%clk 0:01:52]}  Rae8 {[%clk 0:02:05]} 17. d4 {[%clk 0:01:41]}  Nh7 {[%clk 0:01:45]} 18. Bd2 {[%clk 0:01:36]}  g5 {[%clk 0:01:40]} 19. f5 {[%clk 0:01:32]}  Bb4 {[%clk 0:01:01]} 20. fxe6 {[%clk 0:01:23]}  Rxf1+ {[%clk 0:01:01]} 21. Rxf1 {[%clk 0:01:22]}  Ndf6 {[%clk 0:01:01]} 22. cxd5 {[%clk 0:01:02]}  cxd5 {[%clk 0:01:00]} 23. Rf5 {[%clk 0:00:36]}  g6 {[%clk 0:00:59]} 24. Re5 {[%clk 0:00:26]}  Bd6 {[%clk 0:00:58]} 25. Re3 {[%clk 0:00:24]}  Bf4 {[%clk 0:00:45]} 26. Rd3 {[%clk 0:00:22]}  Bxd2 {[%clk 0:00:45]} 27. Rxd2 {[%clk 0:00:22]}  Rd8 {[%clk 0:00:46]} 28. e7 {[%clk 0:00:21]}  Re8 {[%clk 0:00:34]} 29. Nxd5 {[%clk 0:00:19]}  Kg7 {[%clk 0:00:31]} 30. Nxf6 {[%clk 0:00:18]}  Nxf6 {[%clk 0:00:30]} 31. e4 {[%clk 0:00:19]}  Rxe7 {[%clk 0:00:18]} 32. e5 {[%clk 0:00:19]}  Nd7 {[%clk 0:00:19]} 33. Kg1 {[%clk 0:00:18]}  a5 {[%clk 0:00:18]} 34. Kf2 {[%clk 0:00:18]}  Re6 {[%clk 0:00:16]} 35. Bxb7 {[%clk 0:00:17]}  Rb6 {[%clk 0:00:16]} 36. Bd5 {[%clk 0:00:16]}  Kf8 {[%clk 0:00:15]} 37. Ke3 {[%clk 0:00:16]}  Ke7 {[%clk 0:00:15]} 38. Rf2 {[%clk 0:00:16]}  a4 {[%clk 0:00:14]} 39. bxa4 {[%clk 0:00:16]}  Rb4 {[%clk 0:00:14]} 40. b3 {[%clk 0:00:15]}  Nb6 {[%clk 0:00:14]} 41. Ke4 {[%clk 0:00:14]}  Nxd5 {[%clk 0:00:14]} 42. Kxd5 {[%clk 0:00:14]}  Rxb3 {[%clk 0:00:15]} 43. Ra2 {[%clk 0:00:15]}  Kd7 {[%clk 0:00:14]} 44. a5 {[%clk 0:00:15]}  Rb7 {[%clk 0:00:14]} 45. a6 {[%clk 0:00:15]}  Ra7 {[%clk 0:00:15]} 46. e6+ {[%clk 0:00:16]}  Ke7 {[%clk 0:00:15]} 47. Ke5 {[%clk 0:00:16]}  Ra8 {[%clk 0:00:15]} 48. d5 {[%clk 0:00:17]}  h5 {[%clk 0:00:16]} 49. d6+ {[%clk 0:00:17]}  Ke8 {[%clk 0:00:16]} 50. Kf6 {[%clk 0:00:17]}  h4 {[%clk 0:00:17]} 51. a7 {[%clk 0:00:17]}  Kf8 {[%clk 0:00:17]} 52. e7+ {[%clk 0:00:14]}  Ke8 {[%clk 0:00:17]} 53. Rb2 {[%clk 0:00:13]}  Kd7 {[%clk 0:00:11]} 54. Rb8 {[%clk 0:00:12]}  Rxa7 {[%clk 0:00:12]} 55. e8=Q+ {[%clk 0:00:12]}  Kxd6 {[%clk 0:00:13]} 56. Qe6+ {[%clk 0:00:12]}  Kc5 {[%clk 0:00:13]} 57. Qb6+ {[%clk 0:00:12]}  Kc4 {[%clk 0:00:13]} 58. Rc8+ {[%clk 0:00:12]}  Kd3 {[%clk 0:00:13]} 59. Qxa7 {[%clk 0:00:12]}  Ke2 {[%clk 0:00:13]} 60. Rc3 {[%clk 0:00:11]}  Kf1 {[%clk 0:00:14]} 61. Rc2 {[%clk 0:00:11]}  Ke1 {[%clk 0:00:13]} 62. Qg1# {[%clk 0:00:11]} 1-0


[Site "https://www.chess.com"]

[Event "Titled Tuesday Blitz May 03 Early 2022"]
[White "Gurevich, Dmitry"]
[Black "Warchol, Kamil"]
[WhiteFideId "2000407"]
[BlackFideId "21858241"]
[WhiteElo "2506"]
[BlackElo "1910"]
[Result "0-1"]
[Round "05"]
[TimeControl "180+1"]
[Date "2022.05.03"]
[WhiteClock "0:00:03"]
[BlackClock "0:00:25"]

1. d4 {[%clk 0:03:00]}  d6 {[%clk 0:02:59]} 2. Nf3 {[%clk 0:02:59]}  Bg4 {[%clk 0:02:57]} 3. g3 {[%clk 0:02:57]}  Nd7 {[%clk 0:02:57]} 4. Bg2 {[%clk 0:02:57]}  c6 {[%clk 0:02:58]} 5. c4 {[%clk 0:02:54]}  Ngf6 {[%clk 0:02:57]} 6. Nc3 {[%clk 0:02:53]}  Qc7 {[%clk 0:02:54]} 7. O-O {[%clk 0:02:51]}  e5 {[%clk 0:02:51]} 8. Be3 {[%clk 0:02:44]}  Be7 {[%clk 0:02:47]} 9. h3 {[%clk 0:02:42]}  Bh5 {[%clk 0:02:45]} 10. Nh4 {[%clk 0:02:41]}  O-O {[%clk 0:02:36]} 11. Nf5 {[%clk 0:02:40]}  Rfe8 {[%clk 0:02:36]} 12. Nxe7+ {[%clk 0:02:39]}  Rxe7 {[%clk 0:02:37]} 13. Qd2 {[%clk 0:02:26]}  Bg6 {[%clk 0:02:29]} 14. Rad1 {[%clk 0:02:17]}  e4 {[%clk 0:02:19]} 15. b4 {[%clk 0:02:07]}  a5 {[%clk 0:02:13]} 16. b5 {[%clk 0:02:02]}  Nb6 {[%clk 0:02:12]} 17. c5 {[%clk 0:01:54]}  Nc4 {[%clk 0:02:06]} 18. Qc1 {[%clk 0:01:53]}  dxc5 {[%clk 0:01:42]} 19. dxc5 {[%clk 0:01:47]}  Nxe3 {[%clk 0:01:43]} 20. Qxe3 {[%clk 0:01:46]}  cxb5 {[%clk 0:01:44]} 21. Nxb5 {[%clk 0:01:44]}  Qc6 {[%clk 0:01:44]} 22. Nd6 {[%clk 0:01:39]}  Rc7 {[%clk 0:01:26]} 23. Rc1 {[%clk 0:01:29]}  Qa4 {[%clk 0:01:23]} 24. a3 {[%clk 0:01:05]}  Nd5 {[%clk 0:01:18]} 25. Qd2 {[%clk 0:01:03]}  Nf6 {[%clk 0:01:10]} 26. Rc4 {[%clk 0:01:02]}  Qc6 {[%clk 0:01:03]} 27. Rb1 {[%clk 0:01:00]}  Rd8 {[%clk 0:00:54]} 28. Qxa5 {[%clk 0:00:52]}  Rcd7 {[%clk 0:00:49]} 29. Rb6 {[%clk 0:00:49]}  Qc7 {[%clk 0:00:46]} 30. Qb5 {[%clk 0:00:47]}  Rb8 {[%clk 0:00:39]} 31. Rb4 {[%clk 0:00:46]}  Nd5 {[%clk 0:00:35]} 32. Rxb7 {[%clk 0:00:45]}  Rxb7 {[%clk 0:00:35]} 33. Qxb7 {[%clk 0:00:45]}  Nxb4 {[%clk 0:00:35]} 34. Qxc7 {[%clk 0:00:36]}  Rxc7 {[%clk 0:00:36]} 35. axb4 {[%clk 0:00:36]}  f5 {[%clk 0:00:37]} 36. e3 {[%clk 0:00:32]}  Kf8 {[%clk 0:00:36]} 37. Bf1 {[%clk 0:00:31]}  Ke7 {[%clk 0:00:37]} 38. Bc4 {[%clk 0:00:27]}  Kf6 {[%clk 0:00:36]} 39. Kf1 {[%clk 0:00:22]}  Bh5 {[%clk 0:00:36]} 40. g4 {[%clk 0:00:21]}  fxg4 {[%clk 0:00:35]} 41. hxg4 {[%clk 0:00:21]}  Bxg4 {[%clk 0:00:34]} 42. Nxe4+ {[%clk 0:00:21]}  Ke5 {[%clk 0:00:35]} 43. Nd6 {[%clk 0:00:21]}  g5 {[%clk 0:00:35]} 44. Kg2 {[%clk 0:00:19]}  h5 {[%clk 0:00:34]} 45. Kg3 {[%clk 0:00:19]}  Bd7 {[%clk 0:00:33]} 46. Be2 {[%clk 0:00:18]}  h4+ {[%clk 0:00:33]} 47. Kg2 {[%clk 0:00:17]}  g4 {[%clk 0:00:34]} 48. Nc4+ {[%clk 0:00:14]}  Kf6 {[%clk 0:00:32]} 49. e4 {[%clk 0:00:13]}  Bc6 {[%clk 0:00:28]} 50. Nd6 {[%clk 0:00:11]}  Kg5 {[%clk 0:00:27]} 51. b5 {[%clk 0:00:10]}  Bxb5 {[%clk 0:00:27]} 52. Nxb5 {[%clk 0:00:07]}  Rxc5 {[%clk 0:00:28]} 53. Nd4 {[%clk 0:00:07]}  Re5 {[%clk 0:00:28]} 54. f3 {[%clk 0:00:05]}  Kf4 {[%clk 0:00:25]} 55. fxg4 {[%clk 0:00:03]}  Rxe4 {[%clk 0:00:25]} 0-1


[Site "https://www.chess.com"]

[Event "Titled Tuesday Blitz May 03 Early 2022"]
[White "Hakobyan, Aram"]
[Black "Aradhya, Garg"]
[WhiteFideId "13306677"]
[BlackFideId "25006746"]
[WhiteElo "2557"]
[BlackElo "2169"]
[Result "1-0"]
[Round "05"]
[TimeControl "180+1"]
[Date "2022.05.03"]
[WhiteClock "0:00:56"]
[BlackClock "0:00:10"]

1. d4 {[%clk 0:03:00]}  d5 {[%clk 0:02:56]} 2. c4 {[%clk 0:02:59]}  c6 {[%clk 0:02:57]} 3. cxd5 {[%clk 0:02:59]}  cxd5 {[%clk 0:02:57]} 4. Bg5 {[%clk 0:02:59]}  f6 {[%clk 0:02:56]} 5. Bd2 {[%clk 0:02:59]}  Nc6 {[%clk 0:02:55]} 6. Nc3 {[%clk 0:02:59]}  Bf5 {[%clk 0:02:53]} 7. e4 {[%clk 0:02:59]}  Bxe4 {[%clk 0:02:52]} 8. Nxe4 {[%clk 0:02:49]}  dxe4 {[%clk 0:02:52]} 9. Bc4 {[%clk 0:02:23]}  Qxd4 {[%clk 0:02:46]} 10. Qb3 {[%clk 0:02:21]}  O-O-O {[%clk 0:02:21]} 11. Be6+ {[%clk 0:02:12]}  Kb8 {[%clk 0:02:18]} 12. Rd1 {[%clk 0:02:04]}  Ne5 {[%clk 0:02:08]} 13. Nh3 {[%clk 0:01:43]}  Nd3+ {[%clk 0:01:51]} 14. Ke2 {[%clk 0:01:37]}  Nh6 {[%clk 0:01:47]} 15. Be3 {[%clk 0:01:21]}  Qe5 {[%clk 0:01:15]} 16. Bf4 {[%clk 0:01:12]}  Nxf4+ {[%clk 0:01:14]} 17. Nxf4 {[%clk 0:01:12]}  Rd6 {[%clk 0:00:29]} 18. Rxd6 {[%clk 0:00:53]}  exd6 {[%clk 0:00:28]} 19. Rc1 {[%clk 0:00:54]}  Be7 {[%clk 0:00:26]} 20. Bd5 {[%clk 0:00:54]}  b6 {[%clk 0:00:22]} 21. Qc2 {[%clk 0:00:55]}  Qxb2 {[%clk 0:00:08]} 22. Qxb2 {[%clk 0:00:54]}  Rc8 {[%clk 0:00:08]} 23. Rxc8+ {[%clk 0:00:54]}  Kxc8 {[%clk 0:00:09]} 24. Qc2+ {[%clk 0:00:55]}  Kd8 {[%clk 0:00:10]} 25. Qc6 {[%clk 0:00:56]} 1-0


[Site "https://www.chess.com"]

[Event "Titled Tuesday Blitz May 03 Early 2022"]
[White "Hamley, Ryan"]
[Black "Williams, Simon K"]
[WhiteFideId "30959497"]
[BlackFideId "404454"]
[WhiteElo "2491"]
[BlackElo "2468"]
[Result "0-1"]
[Round "05"]
[TimeControl "180+1"]
[Date "2022.05.03"]
[WhiteClock "0:00:04"]
[BlackClock "0:00:05"]

1. e4 {[%clk 0:03:00]}  d6 {[%clk 0:02:46]} 2. d4 {[%clk 0:02:59]}  Nf6 {[%clk 0:02:44]} 3. Nc3 {[%clk 0:02:59]}  Nbd7 {[%clk 0:02:44]} 4. f4 {[%clk 0:02:57]}  e5 {[%clk 0:02:43]} 5. Nf3 {[%clk 0:02:56]}  exd4 {[%clk 0:02:43]} 6. Nxd4 {[%clk 0:02:56]}  g6 {[%clk 0:02:43]} 7. Be2 {[%clk 0:02:52]}  Bg7 {[%clk 0:02:42]} 8. O-O {[%clk 0:02:52]}  O-O {[%clk 0:02:42]} 9. Bf3 {[%clk 0:02:50]}  Re8 {[%clk 0:02:39]} 10. Re1 {[%clk 0:02:48]}  c6 {[%clk 0:02:30]} 11. Be3 {[%clk 0:02:41]}  Nc5 {[%clk 0:02:26]} 12. Bf2 {[%clk 0:02:39]}  Qc7 {[%clk 0:02:17]} 13. a4 {[%clk 0:02:29]}  a5 {[%clk 0:02:14]} 14. Qd2 {[%clk 0:02:28]}  h5 {[%clk 0:02:04]} 15. h3 {[%clk 0:02:28]}  Bd7 {[%clk 0:02:02]} 16. Re2 {[%clk 0:02:14]}  Rad8 {[%clk 0:02:01]} 17. Rae1 {[%clk 0:02:08]}  Bc8 {[%clk 0:02:01]} 18. Qc1 {[%clk 0:02:01]}  Ne6 {[%clk 0:01:36]} 19. Nxe6 {[%clk 0:01:59]}  Bxe6 {[%clk 0:01:36]} 20. Bh4 {[%clk 0:01:43]}  Rc8 {[%clk 0:01:27]} 21. Qe3 {[%clk 0:01:40]}  Ng4 {[%clk 0:01:12]} 22. hxg4 {[%clk 0:01:27]}  hxg4 {[%clk 0:01:12]} 23. f5 {[%clk 0:01:20]}  Bxf5 {[%clk 0:01:07]} 24. Qf2 {[%clk 0:00:57]}  gxf3 {[%clk 0:01:07]} 25. Qxf3 {[%clk 0:00:58]}  Be6 {[%clk 0:01:07]} 26. Bf2 {[%clk 0:00:57]}  Be5 {[%clk 0:01:06]} 27. Nd1 {[%clk 0:00:54]}  Kg7 {[%clk 0:01:05]} 28. Ne3 {[%clk 0:00:53]}  Rh8 {[%clk 0:01:05]} 29. Ng4 {[%clk 0:00:50]}  Bxg4 {[%clk 0:01:04]} 30. Qxg4 {[%clk 0:00:51]}  Qe7 {[%clk 0:01:00]} 31. c3 {[%clk 0:00:47]}  Rh5 {[%clk 0:00:59]} 32. Bd4 {[%clk 0:00:44]}  Rch8 {[%clk 0:00:51]} 33. Kf2 {[%clk 0:00:37]}  Rh4 {[%clk 0:00:43]} 34. Qf3 {[%clk 0:00:32]}  Rf4 {[%clk 0:00:41]} 35. Qxf4 {[%clk 0:00:30]}  Rh4 {[%clk 0:00:23]} 36. Qf3 {[%clk 0:00:28]}  g5 {[%clk 0:00:19]} 37. Ke3 {[%clk 0:00:22]}  Kg8 {[%clk 0:00:15]} 38. Rf1 {[%clk 0:00:13]}  Rf4 {[%clk 0:00:12]} 39. Ref2 {[%clk 0:00:06]}  Rxf3+ {[%clk 0:00:09]} 40. Rxf3 {[%clk 0:00:07]}  d5 {[%clk 0:00:07]} 41. exd5 {[%clk 0:00:03]}  cxd5 {[%clk 0:00:03]} 42. Kd3 {[%clk 0:00:01]}  Bxd4 {[%clk 0:00:03]} 43. Kxd4 {[%clk 0:00:02]}  Qe4+ {[%clk 0:00:03]} 44. Kc5 {[%clk 0:00:03]}  Qc4+ {[%clk 0:00:03]} 45. Kd6 {[%clk 0:00:04]}  Qc6+ {[%clk 0:00:04]} 46. Ke5 {[%clk 0:00:04]}  Qe6+ {[%clk 0:00:03]} 47. Kd4 {[%clk 0:00:05]}  Qe4+ {[%clk 0:00:01]} 48. Kc5 {[%clk 0:00:05]}  Qc4+ {[%clk 0:00:02]} 49. Kd6 {[%clk 0:00:05]}  Qxa4 {[%clk 0:00:02]} 50. Rxf7 {[%clk 0:00:05]}  Qc6+ {[%clk 0:00:03]} 51. Ke5 {[%clk 0:00:06]}  Qc5 {[%clk 0:00:02]} 52. R7f6 {[%clk 0:00:05]}  d4+ {[%clk 0:00:02]} 53. Ke4 {[%clk 0:00:05]}  dxc3 {[%clk 0:00:03]} 54. Rg6+ {[%clk 0:00:05]}  Kh7 {[%clk 0:00:04]} 55. Re6 {[%clk 0:00:04]}  Qc4+ {[%clk 0:00:04]} 56. Ke5 {[%clk 0:00:04]}  c2 {[%clk 0:00:04]} 57. Rf7+ {[%clk 0:00:03]}  Kg8 {[%clk 0:00:05]} 58. Kf6 {[%clk 0:00:04]}  Qf1+ {[%clk 0:00:05]} 0-1


[Site "https://www.chess.com"]

[Event "Titled Tuesday Blitz May 03 Early 2022"]
[White "Hansen, Eric"]
[Black "Karolczuk, Iwo"]
[WhiteFideId "2606771"]
[BlackFideId "21816972"]
[WhiteElo "2568"]
[BlackElo "2277"]
[Result "1-0"]
[Round "05"]
[TimeControl "180+1"]
[Date "2022.05.03"]
[WhiteClock "0:00:05"]
[BlackClock "0:00:04"]

1. e4 {[%clk 0:03:00]}  c5 {[%clk 0:02:50]} 2. Nf3 {[%clk 0:03:01]}  d6 {[%clk 0:02:47]} 3. Bb5+ {[%clk 0:03:00]}  Nd7 {[%clk 0:02:46]} 4. c3 {[%clk 0:03:00]}  a6 {[%clk 0:02:43]} 5. Ba4 {[%clk 0:03:00]}  b5 {[%clk 0:02:42]} 6. Bc2 {[%clk 0:03:01]}  c4 {[%clk 0:02:40]} 7. b3 {[%clk 0:03:01]}  Bb7 {[%clk 0:02:38]} 8. O-O {[%clk 0:03:01]}  g6 {[%clk 0:02:36]} 9. bxc4 {[%clk 0:02:59]}  bxc4 {[%clk 0:02:37]} 10. Na3 {[%clk 0:02:59]}  Rc8 {[%clk 0:02:37]} 11. Rb1 {[%clk 0:03:00]}  Ba8 {[%clk 0:02:36]} 12. Qe2 {[%clk 0:03:00]}  Qc7 {[%clk 0:02:30]} 13. Ba4 {[%clk 0:03:00]}  Bg7 {[%clk 0:02:21]} 14. Qxc4 {[%clk 0:03:00]}  Qd8 {[%clk 0:02:11]} 15. Qe2 {[%clk 0:02:39]}  Nf6 {[%clk 0:02:10]} 16. e5 {[%clk 0:02:40]}  dxe5 {[%clk 0:02:02]} 17. Nxe5 {[%clk 0:02:40]}  O-O {[%clk 0:02:02]} 18. Nxd7 {[%clk 0:02:34]}  Nxd7 {[%clk 0:02:03]} 19. Nc4 {[%clk 0:02:24]}  Bd5 {[%clk 0:01:30]} 20. Bb3 {[%clk 0:01:56]}  Nc5 {[%clk 0:01:26]} 21. d4 {[%clk 0:01:56]}  Nxb3 {[%clk 0:01:17]} 22. axb3 {[%clk 0:01:57]}  Qc7 {[%clk 0:01:14]} 23. Ba3 {[%clk 0:01:55]}  Rfe8 {[%clk 0:01:11]} 24. Bc5 {[%clk 0:01:54]}  e5 {[%clk 0:01:05]} 25. Nd6 {[%clk 0:01:51]}  exd4 {[%clk 0:00:39]} 26. Nxe8 {[%clk 0:01:50]}  Qxc5 {[%clk 0:00:39]} 27. Nxg7 {[%clk 0:01:40]}  Kxg7 {[%clk 0:00:40]} 28. cxd4 {[%clk 0:01:26]}  Qc6 {[%clk 0:00:37]} 29. Qe3 {[%clk 0:01:20]}  Qb7 {[%clk 0:00:32]} 30. Rfc1 {[%clk 0:01:13]}  Rd8 {[%clk 0:00:27]} 31. Qe5+ {[%clk 0:01:12]}  Kg8 {[%clk 0:00:26]} 32. Rc7 {[%clk 0:01:09]}  Qb4 {[%clk 0:00:23]} 33. Qf6 {[%clk 0:01:03]}  Rf8 {[%clk 0:00:20]} 34. h4 {[%clk 0:00:59]}  h5 {[%clk 0:00:18]} 35. Qe5 {[%clk 0:00:41]}  Be6 {[%clk 0:00:13]} 36. Rc6 {[%clk 0:00:35]}  Bf5 {[%clk 0:00:13]} 37. Rb2 {[%clk 0:00:34]}  Qa3 {[%clk 0:00:11]} 38. d5 {[%clk 0:00:34]}  Qa1+ {[%clk 0:00:07]} 39. Kh2 {[%clk 0:00:34]}  a5 {[%clk 0:00:06]} 40. Re2 {[%clk 0:00:29]}  Qd1 {[%clk 0:00:06]} 41. Re3 {[%clk 0:00:26]}  a4 {[%clk 0:00:06]} 42. bxa4 {[%clk 0:00:24]}  Qxa4 {[%clk 0:00:06]} 43. Qg3 {[%clk 0:00:18]}  Rd8 {[%clk 0:00:06]} 44. Rc5 {[%clk 0:00:17]}  Qd4 {[%clk 0:00:05]} 45. Rec3 {[%clk 0:00:11]}  Rxd5 {[%clk 0:00:05]} 46. R3c4 {[%clk 0:00:09]}  Qd1 {[%clk 0:00:04]} 47. Rxd5 {[%clk 0:00:08]}  Qxd5 {[%clk 0:00:05]} 48. Rb4 {[%clk 0:00:08]}  Kh7 {[%clk 0:00:05]} 49. Qf4 {[%clk 0:00:07]}  Be6 {[%clk 0:00:05]} 50. Qd4 {[%clk 0:00:05]}  Qxd4 {[%clk 0:00:03]} 51. Rxd4 {[%clk 0:00:06]}  Kh6 {[%clk 0:00:04]} 52. Re4 {[%clk 0:00:04]}  g5 {[%clk 0:00:03]} 53. hxg5+ {[%clk 0:00:03]}  Kxg5 {[%clk 0:00:04]} 54. Re5+ {[%clk 0:00:03]}  Kg6 {[%clk 0:00:04]} 55. Kg3 {[%clk 0:00:04]}  Bc4 {[%clk 0:00:03]} 56. Kh4 {[%clk 0:00:04]}  f5 {[%clk 0:00:02]} 57. Rc5 {[%clk 0:00:03]}  Be2 {[%clk 0:00:03]} 58. Rc6+ {[%clk 0:00:03]}  Kf7 {[%clk 0:00:03]} 59. Kg5 {[%clk 0:00:03]}  Ke7 {[%clk 0:00:03]} 60. g3 {[%clk 0:00:02]}  Bg4 {[%clk 0:00:02]} 61. Rh6 {[%clk 0:00:01]}  Kf7 {[%clk 0:00:02]} 62. Kf4 {[%clk 0:00:01]}  Kg7 {[%clk 0:00:02]} 63. Rd6 {[%clk 0:00:02]}  Kf7 {[%clk 0:00:03]} 64. f3 {[%clk 0:00:02]}  Bh3 {[%clk 0:00:03]} 65. Ke5 {[%clk 0:00:02]}  Ke7 {[%clk 0:00:03]} 66. Rh6 {[%clk 0:00:02]}  Bg2 {[%clk 0:00:03]} 67. Kf4 {[%clk 0:00:03]}  Kf7 {[%clk 0:00:03]} 68. Rxh5 {[%clk 0:00:03]}  Kg6 {[%clk 0:00:03]} 69. Rg5+ {[%clk 0:00:04]}  Kh6 {[%clk 0:00:04]} 70. Rxf5 {[%clk 0:00:05]}  Bh3 {[%clk 0:00:04]} 71. g4 {[%clk 0:00:05]} 1-0


[Site "https://www.chess.com"]

[Event "Titled Tuesday Blitz May 03 Early 2022"]
[White "Horcajuelo Rocamora, Martin"]
[Black "Agasarov, Benik"]
[WhiteFideId "24573027"]
[BlackFideId "13314823"]
[WhiteElo "1822"]
[BlackElo "2524"]
[Result "1/2-1/2"]
[Round "05"]
[TimeControl "180+1"]
[Date "2022.05.03"]
[WhiteClock "0:00:34"]
[BlackClock "0:00:06"]

1. e4 {[%clk 0:03:00]}  c5 {[%clk 0:02:32]} 2. Nf3 {[%clk 0:02:58]}  d6 {[%clk 0:02:31]} 3. d4 {[%clk 0:02:52]}  cxd4 {[%clk 0:02:32]} 4. Nxd4 {[%clk 0:02:52]}  Nf6 {[%clk 0:02:32]} 5. Nc3 {[%clk 0:02:53]}  a6 {[%clk 0:02:33]} 6. Bg5 {[%clk 0:02:50]}  Nbd7 {[%clk 0:02:31]} 7. f4 {[%clk 0:02:50]}  h6 {[%clk 0:02:29]} 8. Bh4 {[%clk 0:02:50]}  g6 {[%clk 0:02:30]} 9. Bc4 {[%clk 0:02:47]}  e5 {[%clk 0:02:24]} 10. fxe5 {[%clk 0:02:41]}  dxe5 {[%clk 0:02:16]} 11. Nf3 {[%clk 0:02:28]}  Be7 {[%clk 0:02:09]} 12. Bb3 {[%clk 0:02:23]}  Qb6 {[%clk 0:02:03]} 13. Bf2 {[%clk 0:02:23]}  Bc5 {[%clk 0:01:58]} 14. Bxc5 {[%clk 0:02:20]}  Qxc5 {[%clk 0:01:53]} 15. Qe2 {[%clk 0:02:15]}  b5 {[%clk 0:01:46]} 16. O-O-O {[%clk 0:02:14]}  Bb7 {[%clk 0:01:42]} 17. Nd5 {[%clk 0:02:04]}  Nxd5 {[%clk 0:01:27]} 18. Bxd5 {[%clk 0:02:05]}  O-O-O {[%clk 0:01:06]} 19. Bxf7 {[%clk 0:01:55]}  Qb6 {[%clk 0:00:54]} 20. Bd5 {[%clk 0:01:51]}  Bxd5 {[%clk 0:00:43]} 21. Rxd5 {[%clk 0:01:46]}  Nf6 {[%clk 0:00:43]} 22. Rxe5 {[%clk 0:01:39]}  Ng4 {[%clk 0:00:39]} 23. Rd5 {[%clk 0:01:34]}  Rxd5 {[%clk 0:00:34]} 24. exd5 {[%clk 0:01:35]}  Qe3+ {[%clk 0:00:34]} 25. Qxe3 {[%clk 0:01:29]}  Nxe3 {[%clk 0:00:35]} 26. d6 {[%clk 0:01:24]}  Kd7 {[%clk 0:00:34]} 27. Ne5+ {[%clk 0:01:21]}  Ke6 {[%clk 0:00:34]} 28. Nxg6 {[%clk 0:01:14]}  Rg8 {[%clk 0:00:33]} 29. Nf4+ {[%clk 0:01:13]}  Kxd6 {[%clk 0:00:34]} 30. g3 {[%clk 0:01:13]}  Kc6 {[%clk 0:00:32]} 31. Re1 {[%clk 0:01:11]}  Ng4 {[%clk 0:00:32]} 32. h3 {[%clk 0:01:06]}  Nf2 {[%clk 0:00:31]} 33. Re6+ {[%clk 0:01:04]}  Kb7 {[%clk 0:00:27]} 34. Re3 {[%clk 0:01:00]}  Rd8 {[%clk 0:00:21]} 35. c3 {[%clk 0:00:56]}  Rd1+ {[%clk 0:00:20]} 36. Kc2 {[%clk 0:00:57]}  Rh1 {[%clk 0:00:20]} 37. Re7+ {[%clk 0:00:50]}  Kb6 {[%clk 0:00:19]} 38. Re6+ {[%clk 0:00:49]}  Kb7 {[%clk 0:00:18]} 39. Rxh6 {[%clk 0:00:49]}  Rh2 {[%clk 0:00:18]} 40. Kb3 {[%clk 0:00:46]}  Nd1 {[%clk 0:00:18]} 41. Nd3 {[%clk 0:00:46]}  Rd2 {[%clk 0:00:17]} 42. Rd6 {[%clk 0:00:44]}  Kc7 {[%clk 0:00:11]} 43. Rd4 {[%clk 0:00:44]}  a5 {[%clk 0:00:08]} 44. a4 {[%clk 0:00:41]}  bxa4+ {[%clk 0:00:08]} 45. Kxa4 {[%clk 0:00:42]}  Rxd3 {[%clk 0:00:07]} 46. Rxd3 {[%clk 0:00:39]}  Nxb2+ {[%clk 0:00:07]} 47. Kxa5 {[%clk 0:00:40]}  Nxd3 {[%clk 0:00:08]} 48. c4 {[%clk 0:00:40]}  Nf2 {[%clk 0:00:08]} 49. h4 {[%clk 0:00:39]}  Ng4 {[%clk 0:00:09]} 50. Kb5 {[%clk 0:00:39]}  Nf6 {[%clk 0:00:07]} 51. c5 {[%clk 0:00:36]}  Ng4 {[%clk 0:00:07]} 52. Kc4 {[%clk 0:00:36]}  Kc6 {[%clk 0:00:07]} 53. Kd4 {[%clk 0:00:36]}  Nh6 {[%clk 0:00:08]} 54. Ke5 {[%clk 0:00:36]}  Kxc5 {[%clk 0:00:07]} 55. Kf6 {[%clk 0:00:36]}  Kd5 {[%clk 0:00:07]} 56. Kg6 {[%clk 0:00:35]}  Ng4 {[%clk 0:00:08]} 57. Kf5 {[%clk 0:00:35]}  Nh6+ {[%clk 0:00:06]} 58. Kg5 {[%clk 0:00:36]}  Nf7+ {[%clk 0:00:05]} 59. Kf6 {[%clk 0:00:36]}  Nh6 {[%clk 0:00:05]} 60. Kg5 {[%clk 0:00:36]}  Nf7+ {[%clk 0:00:05]} 61. Kg6 {[%clk 0:00:37]}  Ne5+ {[%clk 0:00:05]} 62. Kg7 {[%clk 0:00:35]}  Ke4 {[%clk 0:00:05]} 63. h5 {[%clk 0:00:36]}  Ng4 {[%clk 0:00:05]} 64. Kg6 {[%clk 0:00:34]}  Kf3 {[%clk 0:00:05]} 65. h6 {[%clk 0:00:34]}  Nxh6 {[%clk 0:00:05]} 66. Kxh6 {[%clk 0:00:34]}  Kxg3 {[%clk 0:00:06]} 1/2-1/2


[Site "https://www.chess.com"]